[Event "Early-Titled-Tuesday-Blitz-April-23-2024"]
[Site "Chess.com"]
[Date "2024.04.23"]
[Round "10"]
[White "Roedor"]
[Black "Dewarfd"]
[Result "1-0"]
[WhiteElo "2348"]
[BlackElo "2085"]
[TimeControl "180+1"]
[EndTime "10:00:19 PDT"]
[Termination "Roedor won on time"]

1. c4 {[%clk 0:02:54.2]} 1... g6 {[%clk 0:02:59.1]} 2. g3 {[%clk 0:02:53.6]}
2... c6 {[%clk 0:02:48.6]} 3. Bg2 {[%clk 0:02:50.8]} 3... d5 {[%clk 0:02:47.3]}
4. Qa4 {[%clk 0:02:46.4]} 4... dxc4 {[%clk 0:02:43.7]} 5. Qxc4 {[%clk
0:02:46.2]} 5... Nf6 {[%clk 0:02:41.3]} 6. Nf3 {[%clk 0:02:46.4]} 6... Bg7
{[%clk 0:02:40.9]} 7. O-O {[%clk 0:02:46.9]} 7... O-O {[%clk 0:02:40.5]} 8. d3
{[%clk 0:02:47.3]} 8... b5 {[%clk 0:02:40.4]} 9. Qc2 {[%clk 0:02:47]} 9... Bb7
{[%clk 0:02:25.4]} 10. a4 {[%clk 0:02:44.3]} 10... a6 {[%clk 0:02:15.4]} 11. Bf4
{[%clk 0:02:44]} 11... Nfd7 {[%clk 0:02:10.2]} 12. Nbd2 {[%clk 0:02:42.5]} 12...
Qb6 {[%clk 0:01:49.2]} 13. Nb3 {[%clk 0:02:39]} 13... c5 {[%clk 0:01:38.3]} 14.
Be3 {[%clk 0:02:37.8]} 14... Rc8 {[%clk 0:01:30.5]} 15. Rfc1 {[%clk 0:02:36.2]}
15... Bd4 {[%clk 0:01:12.5]} 16. Bxd4 {[%clk 0:02:30.6]} 16... cxd4 {[%clk
0:01:12.5]} 17. a5 {[%clk 0:02:03.8]} 17... Rxc2 {[%clk 0:01:02.6]} 18. axb6
{[%clk 0:02:00.6]} 18... Rxc1+ {[%clk 0:01:02.3]} 19. Rxc1 {[%clk 0:02:00]}
19... Nxb6 {[%clk 0:01:01]} 20. Na5 {[%clk 0:01:57.9]} 20... Bxf3 {[%clk
0:00:53.4]} 21. Bxf3 {[%clk 0:01:58.8]} 21... Ra7 {[%clk 0:00:53.2]} 22. b4
{[%clk 0:01:45.6]} 22... e6 {[%clk 0:00:48.7]} 23. h4 {[%clk 0:01:36.3]} 23...
h5 {[%clk 0:00:46.6]} 24. Kf1 {[%clk 0:01:34.8]} 24... Kg7 {[%clk 0:00:44.9]}
25. Ke1 {[%clk 0:01:35]} 25... Na4 {[%clk 0:00:33.9]} 26. Rc8 {[%clk 0:01:25.8]}
26... Nd7 {[%clk 0:00:20.2]} 27. Nc6 {[%clk 0:01:24.6]} 27... Rb7 {[%clk
0:00:18.7]} 28. Nxd4 {[%clk 0:01:14.4]} 28... Rb8 {[%clk 0:00:17.2]} 29. Rc7
{[%clk 0:01:10.1]} 29... Ne5 {[%clk 0:00:16]} 30. Nxe6+ {[%clk 0:01:07.3]} 30...
Kf6 {[%clk 0:00:16.4]} 31. Ng5 {[%clk 0:01:06.9]} 31... Nxf3+ {[%clk 0:00:15.1]}
32. exf3 {[%clk 0:01:05.6]} 32... Rf8 {[%clk 0:00:13.4]} 33. Rc6+ {[%clk
0:01:05.4]} 33... Kg7 {[%clk 0:00:12.6]} 34. Rxa6 {[%clk 0:01:05.3]} 34... Nc3
{[%clk 0:00:12.6]} 35. Rb6 {[%clk 0:00:56.6]} 35... Ra8 {[%clk 0:00:06.6]} 36.
Kd2 {[%clk 0:00:54.2]} 36... Ra3 {[%clk 0:00:06.6]} 37. Rb7 {[%clk 0:00:52.7]}
37... Nd5 {[%clk 0:00:03.5]} 38. Rxf7+ {[%clk 0:00:50.2]} 38... Kg8 {[%clk
0:00:03.9]} 39. Rd7 {[%clk 0:00:49.7]} 39... Nxb4 {[%clk 0:00:03.6]} 40. d4
{[%clk 0:00:47]} 40... Ra2+ {[%clk 0:00:02.5]} 41. Ke3 {[%clk 0:00:45.8]} 41...
Nc2+ {[%clk 0:00:01.5]} 42. Kf4 {[%clk 0:00:45.7]} 1-0

[Event "Early-Titled-Tuesday-Blitz-April-23-2024"]
[Site "Chess.com"]
[Date "2024.04.23"]
[Round "10"]
[White "LLariMarc"]
[Black "Alexei_Gubajdullin"]
[Result "1-0"]
[WhiteElo "2500"]
[BlackElo "2595"]
[TimeControl "180+1"]
[EndTime "10:00:20 PDT"]
[Termination "LLariMarc won by checkmate"]

1. d4 {[%clk 0:03:00.9]} 1... Nf6 {[%clk 0:02:59.4]} 2. c4 {[%clk 0:03:00.7]}
2... g6 {[%clk 0:02:56.1]} 3. g3 {[%clk 0:03:00.5]} 3... Bg7 {[%clk 0:02:55.9]}
4. Bg2 {[%clk 0:03:00.5]} 4... O-O {[%clk 0:02:55.9]} 5. e4 {[%clk 0:02:59.8]}
5... d6 {[%clk 0:02:55.9]} 6. Nc3 {[%clk 0:02:59.9]} 6... Nbd7 {[%clk
0:02:55.4]} 7. Nge2 {[%clk 0:02:59.4]} 7... e5 {[%clk 0:02:54.4]} 8. O-O {[%clk
0:02:59.6]} 8... c6 {[%clk 0:02:54.4]} 9. h3 {[%clk 0:02:59.2]} 9... Re8 {[%clk
0:02:54]} 10. Be3 {[%clk 0:02:59.8]} 10... a5 {[%clk 0:02:53.9]} 11. Qc2 {[%clk
0:02:59.7]} 11... exd4 {[%clk 0:02:53.2]} 12. Nxd4 {[%clk 0:02:59.6]} 12... Nc5
{[%clk 0:02:52.6]} 13. Rad1 {[%clk 0:02:57.6]} 13... Qb6 {[%clk 0:02:52.1]} 14.
Rfe1 {[%clk 0:02:54.6]} 14... Qb4 {[%clk 0:02:50.8]} 15. a3 {[%clk 0:02:48.7]}
15... Qb6 {[%clk 0:02:50.4]} 16. b3 {[%clk 0:02:44.9]} 16... Nfd7 {[%clk
0:02:47.1]} 17. Rb1 {[%clk 0:02:36.5]} 17... Qa6 {[%clk 0:02:36.1]} 18. f4
{[%clk 0:02:32.4]} 18... Nf6 {[%clk 0:02:31.2]} 19. Bf2 {[%clk 0:02:29]} 19...
a4 {[%clk 0:02:22.5]} 20. b4 {[%clk 0:02:28.8]} 20... Ne6 {[%clk 0:02:22.5]} 21.
b5 {[%clk 0:02:21.9]} 21... Nxd4 {[%clk 0:02:21]} 22. Bxd4 {[%clk 0:02:20.7]}
22... Qa5 {[%clk 0:02:20.7]} 23. bxc6 {[%clk 0:02:13.8]} 23... bxc6 {[%clk
0:02:20.1]} 24. e5 {[%clk 0:02:12.7]} 24... dxe5 {[%clk 0:02:19.5]} 25. fxe5
{[%clk 0:02:06.9]} 25... c5 {[%clk 0:01:55.9]} 26. exf6 {[%clk 0:02:00.7]} 26...
Bf5 {[%clk 0:01:54.2]} 27. Ne4 {[%clk 0:01:55.5]} 27... cxd4 {[%clk 0:01:36.7]}
28. fxg7 {[%clk 0:01:54.6]} 28... Kxg7 {[%clk 0:01:35.7]} 29. Qd3 {[%clk
0:01:48.2]} 29... Rad8 {[%clk 0:01:31.7]} 30. g4 {[%clk 0:01:48.2]} 30... Bc8
{[%clk 0:01:28.1]} 31. Rf1 {[%clk 0:01:43.9]} 31... h5 {[%clk 0:01:26.9]} 32.
Rb5 {[%clk 0:01:41.1]} 32... Qc7 {[%clk 0:01:23.1]} 33. gxh5 {[%clk 0:01:40.3]}
33... Bf5 {[%clk 0:01:22.8]} 34. Rbxf5 {[%clk 0:01:40]} 34... gxf5 {[%clk
0:01:22.6]} 35. Rxf5 {[%clk 0:01:40.9]} 35... Kh8 {[%clk 0:01:08.3]} 36. Qd2
{[%clk 0:01:32.3]} 36... Qb6 {[%clk 0:00:59.9]} 37. Nf6 {[%clk 0:01:25.6]} 37...
d3+ {[%clk 0:00:49.3]} 38. c5 {[%clk 0:01:17.5]} 38... Qb1+ {[%clk 0:00:38.4]}
39. Kh2 {[%clk 0:01:16.5]} 39... Qc1 {[%clk 0:00:31.4]} 40. Qxc1 {[%clk
0:01:12.5]} 40... d2 {[%clk 0:00:30.7]} 41. Qxd2 {[%clk 0:01:12.7]} 41... Rxd2
{[%clk 0:00:30.1]} 42. Nxe8 {[%clk 0:01:12.4]} 42... Rd3 {[%clk 0:00:29.7]} 43.
Rf3 {[%clk 0:01:10.5]} 43... Rd5 {[%clk 0:00:29.3]} 44. Rc3 {[%clk 0:01:10]}
44... f6 {[%clk 0:00:27.8]} 45. Nxf6 {[%clk 0:01:09]} 45... Rf5 {[%clk
0:00:27.3]} 46. c6 {[%clk 0:01:08.7]} 46... Rxf6 {[%clk 0:00:15.5]} 47. c7
{[%clk 0:01:09.6]} 47... Rf8 {[%clk 0:00:15.9]} 48. c8=Q {[%clk 0:01:09.6]}
48... Rxc8 {[%clk 0:00:16.3]} 49. Rxc8+ {[%clk 0:01:10.5]} 49... Kg7 {[%clk
0:00:16.9]} 50. Rc6 {[%clk 0:01:11.4]} 50... Kh7 {[%clk 0:00:17]} 51. h6 {[%clk
0:01:12.3]} 51... Kg8 {[%clk 0:00:16.9]} 52. Kg3 {[%clk 0:01:13.2]} 52... Kh7
{[%clk 0:00:17]} 53. Kh4 {[%clk 0:01:14.1]} 53... Kg8 {[%clk 0:00:17.1]} 54. Kg5
{[%clk 0:01:15]} 54... Kf7 {[%clk 0:00:17.8]} 55. Bd5+ {[%clk 0:01:14.9]} 55...
Ke7 {[%clk 0:00:18.7]} 56. h7 {[%clk 0:01:15.4]} 56... Kd7 {[%clk 0:00:19.6]}
57. h8=Q {[%clk 0:01:15.8]} 57... Ke7 {[%clk 0:00:20.5]} 58. Qg7+ {[%clk
0:01:15.6]} 58... Kd8 {[%clk 0:00:21.4]} 59. Ra6 {[%clk 0:01:12]} 59... Kc8
{[%clk 0:00:20.9]} 60. Ra8# {[%clk 0:01:12.9]} 1-0

[Event "Early-Titled-Tuesday-Blitz-April-23-2024"]
[Site "Chess.com"]
[Date "2024.04.23"]
[Round "10"]
[White "AnishOnYoutube"]
[Black "Keranke"]
[Result "1-0"]
[WhiteElo "3061"]
[BlackElo "2864"]
[TimeControl "180+1"]
[EndTime "10:00:26 PDT"]
[Termination "AnishOnYoutube won by resignation"]

1. Nf3 {[%clk 0:03:00.9]} 1... g6 {[%clk 0:02:59.9]} 2. c4 {[%clk 0:02:59.8]}
2... Bg7 {[%clk 0:03:00.4]} 3. g3 {[%clk 0:03:00.3]} 3... Nf6 {[%clk 0:03:00.2]}
4. Bg2 {[%clk 0:03:00.7]} 4... O-O {[%clk 0:03:00.8]} 5. O-O {[%clk 0:03:01.2]}
5... d6 {[%clk 0:03:01.4]} 6. Nc3 {[%clk 0:03:01.8]} 6... c6 {[%clk 0:03:02.1]}
7. d4 {[%clk 0:02:54.8]} 7... Qa5 {[%clk 0:03:01.7]} 8. e4 {[%clk 0:02:43]} 8...
Qh5 {[%clk 0:03:00]} 9. Ng5 {[%clk 0:02:36.9]} 9... Qxd1 {[%clk 0:02:59.4]} 10.
Rxd1 {[%clk 0:02:36.6]} 10... e5 {[%clk 0:02:59.8]} 11. d5 {[%clk 0:02:33.3]}
11... cxd5 {[%clk 0:02:59.3]} 12. exd5 {[%clk 0:02:29.3]} 12... Na6 {[%clk
0:02:51.7]} 13. Nb5 {[%clk 0:02:24.2]} 13... Rd8 {[%clk 0:02:46.7]} 14. Be3
{[%clk 0:02:24.3]} 14... b6 {[%clk 0:02:18.1]} 15. Nxa7 {[%clk 0:02:14]} 15...
Rxa7 {[%clk 0:02:17.8]} 16. Bxb6 {[%clk 0:02:14.7]} 16... Rdd7 {[%clk
0:02:13.2]} 17. Bxa7 {[%clk 0:02:11.1]} 17... Rxa7 {[%clk 0:02:14.1]} 18. a3
{[%clk 0:02:10.2]} 18... h6 {[%clk 0:02:02.7]} 19. Nf3 {[%clk 0:02:05]} 19...
Bg4 {[%clk 0:01:59.3]} 20. h3 {[%clk 0:02:03.5]} 20... Bxf3 {[%clk 0:01:59.2]}
21. Bxf3 {[%clk 0:02:04.4]} 21... Nd7 {[%clk 0:01:59.1]} 22. Rab1 {[%clk
0:02:00.2]} 22... f5 {[%clk 0:01:57.8]} 23. b4 {[%clk 0:01:59.1]} 23... e4
{[%clk 0:01:57.3]} 24. Be2 {[%clk 0:01:59.5]} 24... Nc7 {[%clk 0:01:47.5]} 25.
c5 {[%clk 0:01:40.5]} 25... dxc5 {[%clk 0:01:44.3]} 26. d6 {[%clk 0:01:40.7]}
26... Ne6 {[%clk 0:01:43]} 27. Bc4 {[%clk 0:01:39.9]} 27... Kf7 {[%clk
0:01:42.3]} 28. bxc5 {[%clk 0:01:37.8]} 28... Nxc5 {[%clk 0:01:40]} 29. Rb8
{[%clk 0:01:03.1]} 29... Be5 {[%clk 0:01:19.6]} 30. Rc8 {[%clk 0:00:57.5]} 30...
Nd7 {[%clk 0:01:19.3]} 31. Rc7 {[%clk 0:00:54.7]} 31... Rxc7 {[%clk 0:01:12.8]}
32. dxc7 {[%clk 0:00:55.1]} 32... Nb6 {[%clk 0:01:13.7]} 33. Rc1 {[%clk
0:00:24.3]} 33... Nc8 {[%clk 0:00:56.9]} 34. Ba6 {[%clk 0:00:24.4]} 34... Nxc7
{[%clk 0:00:50]} 35. Bxc8 {[%clk 0:00:24.4]} 35... Ke7 {[%clk 0:00:48.3]} 36. a4
{[%clk 0:00:24.1]} 36... Kd6 {[%clk 0:00:47.3]} 37. a5 {[%clk 0:00:22.7]} 37...
Bd4 {[%clk 0:00:45.2]} 38. Rd1 {[%clk 0:00:18.9]} 38... Kc5 {[%clk 0:00:43.5]}
39. a6 {[%clk 0:00:16.6]} 39... e3 {[%clk 0:00:40]} 40. a7 {[%clk 0:00:09.1]}
40... exf2+ {[%clk 0:00:35.6]} 41. Kf1 {[%clk 0:00:09]} 41... Be3 {[%clk
0:00:34.6]} 42. Bb7 {[%clk 0:00:08.3]} 1-0

[Event "Early-Titled-Tuesday-Blitz-April-23-2024"]
[Site "Chess.com"]
[Date "2024.04.23"]
[Round "10"]
[White "Manukyan_Artak"]
[Black "Mikhail_Golubev"]
[Result "1-0"]
[WhiteElo "2478"]
[BlackElo "2577"]
[TimeControl "180+1"]
[EndTime "10:00:26 PDT"]
[Termination "Manukyan_Artak won on time"]

1. e4 {[%clk 0:03:00.9]} 1... c5 {[%clk 0:02:59.8]} 2. Nf3 {[%clk 0:02:59.3]}
2... d6 {[%clk 0:02:59.7]} 3. Bb5+ {[%clk 0:02:58.7]} 3... Bd7 {[%clk
0:02:59.2]} 4. Bxd7+ {[%clk 0:02:59.3]} 4... Qxd7 {[%clk 0:02:59.7]} 5. O-O
{[%clk 0:02:59.9]} 5... Nc6 {[%clk 0:02:59]} 6. c4 {[%clk 0:03:00.4]} 6... g6
{[%clk 0:02:57.6]} 7. d4 {[%clk 0:02:58.3]} 7... cxd4 {[%clk 0:02:57.5]} 8. Nxd4
{[%clk 0:02:59.2]} 8... Bg7 {[%clk 0:02:57.6]} 9. Be3 {[%clk 0:02:59.4]} 9...
Nf6 {[%clk 0:02:54.1]} 10. f3 {[%clk 0:02:59.1]} 10... O-O {[%clk 0:02:53.2]}
11. Nc3 {[%clk 0:02:59]} 11... a6 {[%clk 0:02:51.7]} 12. a4 {[%clk 0:02:58.5]}
12... e6 {[%clk 0:02:51.9]} 13. Qd2 {[%clk 0:02:57.4]} 13... Ne5 {[%clk
0:02:43.1]} 14. b3 {[%clk 0:02:56.8]} 14... d5 {[%clk 0:02:43.4]} 15. cxd5
{[%clk 0:02:52.4]} 15... exd5 {[%clk 0:02:43.5]} 16. f4 {[%clk 0:02:52.8]} 16...
Neg4 {[%clk 0:02:40.6]} 17. e5 {[%clk 0:02:52.9]} 17... Ne4 {[%clk 0:02:33.6]}
18. Nxe4 {[%clk 0:02:50.3]} 18... dxe4 {[%clk 0:02:34.5]} 19. Rad1 {[%clk
0:02:44.9]} 19... Rad8 {[%clk 0:02:17.9]} 20. h3 {[%clk 0:02:24.1]} 20... Nxe3
{[%clk 0:02:17.4]} 21. Qxe3 {[%clk 0:02:22]} 21... f5 {[%clk 0:02:18.1]} 22. Rd2
{[%clk 0:01:36.6]} 22... Rfe8 {[%clk 0:02:17.2]} 23. Rfd1 {[%clk 0:01:34.5]}
23... Qf7 {[%clk 0:01:42.9]} 24. Kh2 {[%clk 0:01:26.3]} 24... Bf8 {[%clk
0:01:36.7]} 25. Ne2 {[%clk 0:01:19.7]} 25... Rxd2 {[%clk 0:01:33.3]} 26. Rxd2
{[%clk 0:01:20.6]} 26... Rc8 {[%clk 0:01:26.8]} 27. Qd4 {[%clk 0:01:11.9]} 27...
Qxb3 {[%clk 0:01:06.6]} 28. Qd7 {[%clk 0:01:11.4]} 28... Qc4 {[%clk 0:01:02.6]}
29. Qxb7 {[%clk 0:01:08]} 29... Rc7 {[%clk 0:00:46.4]} 30. Qb6 {[%clk
0:01:05.6]} 30... Be7 {[%clk 0:00:22.4]} 31. Qb8+ {[%clk 0:00:57.2]} 31... Kg7
{[%clk 0:00:11.7]} 32. Rd1 {[%clk 0:00:34.6]} 32... e3 {[%clk 0:00:08.3]} 33.
Rc1 {[%clk 0:00:29.9]} 33... Qxc1 {[%clk 0:00:05]} 34. Nxc1 {[%clk 0:00:29.4]}
34... Rxc1 {[%clk 0:00:05.1]} 35. Qa7 {[%clk 0:00:29.1]} 35... e2 {[%clk
0:00:02.7]} 36. Qxe7+ {[%clk 0:00:28.8]} 1-0

[Event "Early-Titled-Tuesday-Blitz-April-23-2024"]
[Site "Chess.com"]
[Date "2024.04.23"]
[Round "10"]
[White "MikeWizard"]
[Black "Fjal"]
[Result "0-1"]
[WhiteElo "2185"]
[BlackElo "2327"]
[TimeControl "180+1"]
[EndTime "10:00:28 PDT"]
[Termination "Fjal won by resignation"]

1. d4 {[%clk 0:03:00.9]} 1... d6 {[%clk 0:02:57]} 2. e4 {[%clk 0:02:59.1]} 2...
g6 {[%clk 0:02:52.6]} 3. c4 {[%clk 0:02:58.5]} 3... Bg7 {[%clk 0:02:51.5]} 4.
Nc3 {[%clk 0:02:58.1]} 4... c5 {[%clk 0:02:44.7]} 5. d5 {[%clk 0:02:57]} 5...
Bxc3+ {[%clk 0:02:43.5]} 6. bxc3 {[%clk 0:02:56.2]} 6... f5 {[%clk 0:02:44.4]}
7. Bd3 {[%clk 0:02:50]} 7... fxe4 {[%clk 0:02:44.2]} 8. Bxe4 {[%clk 0:02:49.5]}
8... Nf6 {[%clk 0:02:45.1]} 9. Bf3 {[%clk 0:02:46.9]} 9... O-O {[%clk
0:02:44.2]} 10. Ne2 {[%clk 0:02:46.4]} 10... Nbd7 {[%clk 0:02:42]} 11. Bh6
{[%clk 0:02:44.5]} 11... Rf7 {[%clk 0:02:40.1]} 12. Nf4 {[%clk 0:02:39.5]} 12...
Ne5 {[%clk 0:02:39.8]} 13. Ne6 {[%clk 0:02:31.6]} 13... Qa5 {[%clk 0:02:39.7]}
14. O-O {[%clk 0:02:21.3]} 14... Qxc3 {[%clk 0:02:32.6]} 15. Ng5 {[%clk
0:02:20.9]} 15... Nxf3+ {[%clk 0:02:31.7]} 16. Qxf3 {[%clk 0:02:19.3]} 16...
Qxf3 {[%clk 0:02:28.5]} 17. gxf3 {[%clk 0:02:18.6]} 17... Bf5 {[%clk 0:02:16.7]}
18. Rfe1 {[%clk 0:02:15.1]} 18... Nd7 {[%clk 0:02:03.6]} 19. Nxf7 {[%clk
0:02:13.7]} 19... Kxf7 {[%clk 0:02:04.5]} 20. Bg5 {[%clk 0:02:13.6]} 20... Re8
{[%clk 0:02:04]} 21. Re3 {[%clk 0:02:09]} 21... e6 {[%clk 0:01:37.5]} 22. Rae1
{[%clk 0:01:59.9]} 22... Ne5 {[%clk 0:01:32.5]} 23. dxe6+ {[%clk 0:01:57.4]}
23... Rxe6 {[%clk 0:01:33.4]} 24. Kg2 {[%clk 0:01:52.3]} 24... Nxc4 {[%clk
0:01:32.1]} 25. Rxe6 {[%clk 0:01:49]} 25... Bxe6 {[%clk 0:01:33]} 26. Rb1 {[%clk
0:01:42.3]} 26... b6 {[%clk 0:01:29.6]} 27. Bd8 {[%clk 0:01:36]} 27... Bd5
{[%clk 0:01:26.9]} 28. Kg3 {[%clk 0:01:33]} 28... Bxf3 {[%clk 0:01:23.7]} 29.
Rc1 {[%clk 0:01:28.5]} 29... Bd5 {[%clk 0:01:22.7]} 30. Rd1 {[%clk 0:01:25.8]}
30... Ke6 {[%clk 0:01:22.1]} 31. Bc7 {[%clk 0:01:24.9]} 31... b5 {[%clk
0:01:17.6]} 32. Kf4 {[%clk 0:01:21.9]} 32... a6 {[%clk 0:01:17.7]} 33. Kg5
{[%clk 0:01:20.6]} 33... Ne5 {[%clk 0:00:50.8]} 34. h3 {[%clk 0:01:10.9]} 34...
Nf7+ {[%clk 0:00:48.7]} 35. Kf4 {[%clk 0:01:06.7]} 35... Bxa2 {[%clk 0:00:49.6]}
36. Ra1 {[%clk 0:01:04]} 36... Bc4 {[%clk 0:00:47.6]} 37. Rxa6 {[%clk
0:01:03.6]} 37... b4 {[%clk 0:00:47.5]} 38. Rb6 {[%clk 0:01:02.7]} 38... Bd3
{[%clk 0:00:42.1]} 39. Ke3 {[%clk 0:00:59.9]} 39... Bc2 {[%clk 0:00:42.3]} 40.
Kd2 {[%clk 0:00:58.4]} 40... b3 {[%clk 0:00:42.7]} 41. Kc3 {[%clk 0:00:56.1]}
41... c4 {[%clk 0:00:42.9]} 42. Kxc4 {[%clk 0:00:53]} 42... Ne5+ {[%clk
0:00:40.7]} 43. Kc3 {[%clk 0:00:52.7]} 43... Nf7 {[%clk 0:00:41]} 44. f4 {[%clk
0:00:50.3]} 44... h5 {[%clk 0:00:38.4]} 45. Kb2 {[%clk 0:00:46.7]} 45... Kf5
{[%clk 0:00:37]} 46. Bxd6 {[%clk 0:00:45.2]} 46... Nxd6 {[%clk 0:00:37.4]} 47.
Rxd6 {[%clk 0:00:45.1]} 47... Kxf4 {[%clk 0:00:38.3]} 48. Rc6 {[%clk 0:00:40.8]}
48... Kg3 {[%clk 0:00:38.3]} 49. Rc3+ {[%clk 0:00:40.6]} 49... Kh4 {[%clk
0:00:38.7]} 50. Re3 {[%clk 0:00:39.5]} 50... g5 {[%clk 0:00:39.1]} 51. Kc3
{[%clk 0:00:37.1]} 51... g4 {[%clk 0:00:38.9]} 52. hxg4 {[%clk 0:00:37.2]} 52...
hxg4 {[%clk 0:00:39.8]} 53. Re2 {[%clk 0:00:34.4]} 53... g3 {[%clk 0:00:39.7]}
54. Kd4 {[%clk 0:00:34]} 54... Kh3 {[%clk 0:00:39.9]} 55. Ke3 {[%clk 0:00:33.9]}
55... b2 {[%clk 0:00:37.8]} 0-1

[Event "Early-Titled-Tuesday-Blitz-April-23-2024"]
[Site "Chess.com"]
[Date "2024.04.23"]
[Round "10"]
[White "rhwr"]
[Black "AccioChess"]
[Result "0-1"]
[WhiteElo "2287"]
[BlackElo "2430"]
[TimeControl "180+1"]
[EndTime "10:00:31 PDT"]
[Termination "AccioChess won by resignation"]

1. e4 {[%clk 0:03:00.9]} 1... e6 {[%clk 0:03:00]} 2. Nf3 {[%clk 0:02:59.1]} 2...
d5 {[%clk 0:02:59.4]} 3. e5 {[%clk 0:02:58.5]} 3... c5 {[%clk 0:02:58.8]} 4. b4
{[%clk 0:02:57.9]} 4... cxb4 {[%clk 0:02:58]} 5. a3 {[%clk 0:02:58.5]} 5... bxa3
{[%clk 0:02:58.5]} 6. Bxa3 {[%clk 0:02:57.5]} 6... Bxa3 {[%clk 0:02:57.2]} 7.
Nxa3 {[%clk 0:02:58.1]} 7... Ne7 {[%clk 0:02:57.6]} 8. Nb5 {[%clk 0:02:57.3]}
8... O-O {[%clk 0:02:57.8]} 9. Rxa7 {[%clk 0:02:53.8]} 9... Rxa7 {[%clk
0:02:57.3]} 10. Nxa7 {[%clk 0:02:53.9]} 10... Nbc6 {[%clk 0:02:57]} 11. Nb5
{[%clk 0:02:36.6]} 11... d4 {[%clk 0:02:44.1]} 12. Bd3 {[%clk 0:02:32]} 12...
Nb4 {[%clk 0:02:41.4]} 13. Bxh7+ {[%clk 0:02:14.8]} 13... Kxh7 {[%clk
0:02:40.4]} 14. Ng5+ {[%clk 0:02:15.3]} 14... Kg6 {[%clk 0:02:40.6]} 15. Qg4
{[%clk 0:02:15.6]} 15... f5 {[%clk 0:02:22.6]} 16. exf6 {[%clk 0:02:04.6]} 16...
Kxf6 {[%clk 0:02:06.1]} 17. Nh7+ {[%clk 0:01:36.9]} 17... Kf7 {[%clk 0:02:01.7]}
18. O-O {[%clk 0:01:26.2]} 18... Nf5 {[%clk 0:01:51.3]} 19. Nxf8 {[%clk
0:01:19.7]} 19... Qxf8 {[%clk 0:01:48.9]} 20. c3 {[%clk 0:01:13.6]} 20... dxc3
{[%clk 0:01:40]} 21. dxc3 {[%clk 0:01:13.4]} 21... Nd5 {[%clk 0:01:38.2]} 22. c4
{[%clk 0:01:08.8]} 22... Nf6 {[%clk 0:01:37.8]} 23. Qe2 {[%clk 0:01:06.4]} 23...
Bd7 {[%clk 0:01:36.7]} 24. Re1 {[%clk 0:01:03.3]} 24... Qc8 {[%clk 0:01:32.2]}
25. g4 {[%clk 0:01:01]} 25... Bxb5 {[%clk 0:01:31.9]} 26. cxb5 {[%clk
0:00:55.6]} 26... Nd4 {[%clk 0:01:28.9]} 27. Qd3 {[%clk 0:00:40.2]} 27... Qc5
{[%clk 0:01:26.9]} 28. h3 {[%clk 0:00:37.3]} 28... Nxb5 {[%clk 0:01:11.6]} 29.
Rb1 {[%clk 0:00:29.6]} 29... Nd6 {[%clk 0:01:11.3]} 30. Qb3 {[%clk 0:00:19.3]}
30... b5 {[%clk 0:01:10]} 31. Re1 {[%clk 0:00:17.4]} 31... Nc4 {[%clk
0:01:06.7]} 32. Qf3 {[%clk 0:00:15.4]} 32... Nd2 {[%clk 0:00:51]} 33. Qf4 {[%clk
0:00:14.1]} 33... Qd4 {[%clk 0:00:38.2]} 34. Qxd4 {[%clk 0:00:07.3]} 34... Nf3+
{[%clk 0:00:37.8]} 35. Kg2 {[%clk 0:00:07.8]} 35... Nxd4 {[%clk 0:00:38.2]} 36.
Rc1 {[%clk 0:00:06.1]} 36... Nd5 {[%clk 0:00:35.4]} 37. f4 {[%clk 0:00:03.5]}
37... Nxf4+ {[%clk 0:00:34.3]} 38. Kf2 {[%clk 0:00:03.6]} 38... Nd3+ {[%clk
0:00:33.9]} 39. Ke3 {[%clk 0:00:03.9]} 39... Nxc1 {[%clk 0:00:34.8]} 40. Kxd4
{[%clk 0:00:04.3]} 40... Ne2+ {[%clk 0:00:34]} 41. Kc5 {[%clk 0:00:04.4]} 41...
Nf4 {[%clk 0:00:34.1]} 42. Kxb5 {[%clk 0:00:04.6]} 42... Nxh3 {[%clk 0:00:34.2]}
43. Kc6 {[%clk 0:00:05.2]} 43... Nf2 {[%clk 0:00:34.3]} 44. Kd6 {[%clk
0:00:06.1]} 44... Nxg4 {[%clk 0:00:34.4]} 0-1